bitfinex-derivatives/quotes_BTCF0:USTF0_20251229
["timestamp","ask_amount","ask_price","bid_price","bid_amount"]
[1766977102125,0.5,89266.0,89244.0,0.09548809]
[1766977102321,0.0112143,89252.0,89234.0,0.09532]
[1766977102519,0.03466668,89265.0,89232.0,0.0112167]
[1766977102520,0.0112146,89250.0,89232.0,0.1065367]
[1766977102720,0.0112146,89250.0,89232.0,0.1365367]
[1766977103228,0.00016809,89250.0,89232.0,0.13670479]
[1766977106421,0.00016809,89250.0,89232.0,0.10670479]
[1766977108037,0.00016809,89250.0,89234.0,0.0112164]
[1766977108230,0.00016809,89250.0,89232.0,0.09548809]
[1766977109434,0.00016809,89250.0,89233.0,0.0112166]
[1766977109637,0.0112147,89249.0,89232.0,0.09548809]
[1766977110731,0.00016809,89250.0,89232.0,0.10670479]
[1766977110931,0.01138269,89250.0,89232.0,0.10670479]
[1766977111831,0.01138269,89250.0,89232.0,0.13670479]
[1766977118653,0.00016809,89250.0,89234.0,0.0112164]
[1766977118858,0.1627737,89257.0,89237.0,0.0112161]
[1766977119160,0.0112145,89251.0,89238.0,0.05624]
[1766977120759,0.0112147,89249.0,89238.0,0.05624]
[1766977121057,0.011215,89247.0,89234.0,0.05624]
[1766977122657,0.02352,89246.0,89232.0,0.09548809]
[1766977122858,0.011215,89247.0,89232.0,0.10548809]
[1766977123056,0.02352043,89246.0,89232.0,0.01016809]
[1766977123250,0.011215,89247.0,89232.0,0.01016809]
[1766977123450,0.02352022,89246.0,89232.0,0.01016809]
[1766977123658,0.02352007,89245.0,89232.0,0.01016809]
[1766977123856,0.011215,89247.0,89232.0,0.01016809]
[1766977124049,0.02352012,89246.0,89232.0,0.01016809]
[1766977124249,0.02352012,89245.0,89232.0,0.01016809]
[1766977124454,0.011215,89247.0,89232.0,0.01016809]
[1766977124654,0.02352047,89246.0,89232.0,0.01016809]
[1766977124854,0.02352047,89245.0,89232.0,0.01016809]
[1766977125056,0.0112146,89250.0,89232.0,0.01016809]
[1766977125255,0.02352033,89249.0,89232.0,0.01016809]
[1766977125453,0.03473513,89248.0,89232.0,0.02138479]
[1766977125652,0.02352033,89247.0,89232.0,0.02138479]
[1766977127259,0.02352033,89247.0,89232.0,0.01016809]
[1766977127759,0.1627748,89248.0,89232.0,0.01016809]
[1766977129758,0.0112155,89243.0,89232.0,0.01016809]
[1766977130560,0.0112155,89243.0,89232.0,0.00016809]
[1766977131564,0.0112151,89246.0,89232.0,0.00016809]
[1766977132362,0.02354189,89245.0,89232.0,0.00016809]
[1766977132565,0.0112151,89246.0,89232.0,0.00016809]
[1766977132760,0.0235402,89245.0,89232.0,0.00016809]
[1766977132956,0.0112151,89246.0,89232.0,0.00016809]
[1766977133160,0.02354014,89245.0,89232.0,0.00016809]
[1766977133468,0.0112151,89246.0,89232.0,0.00016809]
[1766977133660,0.02354297,89245.0,89232.0,0.00016809]
[1766977133860,0.0112151,89246.0,89232.0,0.00016809]
[1766977134056,0.02354315,89245.0,89232.0,0.00016809]
[1766977134269,0.0112151,89246.0,89232.0,0.00016809]
[1766977134467,0.0235428,89245.0,89232.0,0.00016809]
[1766977134667,0.0112151,89246.0,89232.0,0.00016809]
[1766977134870,0.0112154,89244.0,89232.0,0.00016809]
[1766977135163,0.0112154,89244.0,89225.0,0.1628176]
[1766977135367,0.0112154,89244.0,89227.0,0.0112173]
[1766977135670,0.0112154,89244.0,89227.0,0.0412173]
[1766977136268,0.0112154,89244.0,89227.0,0.04138539]
[1766977137064,0.0112149,89247.0,89229.0,0.011217]
[1766977137266,0.02354283,89246.0,89229.0,0.011217]
[1766977137455,0.03475803,89245.0,89229.0,0.011217]
[1766977137661,0.02354283,89244.0,89229.0,0.011217]
[1766977137862,0.02354283,89243.0,89229.0,0.011217]
[1766977138062,0.0674952,89245.0,89229.0,0.011217]
[1766977138266,0.02354197,89244.0,89229.0,0.011217]
[1766977138467,0.02354197,89243.0,89230.0,0.2241354]
[1766977138670,0.0674952,89245.0,89230.0,0.2241354]
[1766977138968,0.02354096,89244.0,89230.0,0.2241354]
[1766977139169,0.02354096,89243.0,89230.0,0.2241354]
[1766977139369,0.0674952,89245.0,89230.0,0.2241354]
[1766977139566,0.02354067,89244.0,89230.0,0.2241354]
[1766977139768,0.02354067,89243.0,89230.0,0.2241354]
[1766977139965,0.0674952,89245.0,89230.0,0.2241354]
[1766977140167,0.02354123,89244.0,89230.0,0.2241354]
[1766977140374,0.02354123,89243.0,89230.0,0.2241354]
[1766977140576,0.0674952,89245.0,89230.0,0.2241354]
[1766977140769,0.02354314,89244.0,89230.0,0.2241354]
[1766977140965,0.02354314,89243.0,89230.0,0.2241354]
[1766977141274,0.0674952,89245.0,89230.0,0.2241354]
[1766977141569,0.02354855,89244.0,89230.0,0.2241354]
[1766977141776,0.07982855,89243.0,89230.0,0.2241354]
[1766977141965,0.02354855,89242.0,89230.0,0.2241354]
[1766977142171,0.05628,89244.0,89230.0,0.2241354]
[1766977142571,0.05628,89244.0,89227.0,0.00016809]
[1766977142766,0.0112161,89238.0,89227.0,0.00016809]
[1766977143477,0.2241354,89240.0,89219.0,0.0112183]
[1766977143669,0.2241354,89240.0,89219.0,0.0412183]
[1766977143863,0.2241354,89240.0,89217.0,0.09532]
[1766977144064,0.2241354,89240.0,89217.0,0.12532]
[1766977144263,0.05628,89244.0,89219.0,0.0112183]
[1766977144465,0.05628,89244.0,89223.0,0.00016809]
[1766977144769,0.0112159,89240.0,89224.0,0.0112178]
[1766977144968,0.0112159,89240.0,89223.0,0.00016809]
[1766977145171,0.0112161,89238.0,89223.0,0.00016809]
[1766977145372,0.05628,89237.0,89223.0,0.00016809]
[1766977145572,0.1065363,89236.0,89223.0,0.00016809]
[1766977145774,0.0112167,89233.0,89223.0,0.00016809]
[1766977146275,0.1065363,89236.0,89223.0,0.00016809]
[1766977146475,0.0112166,89234.0,89223.0,0.00016809]
[1766977147977,0.0112169,89232.0,89223.0,0.00016809]
[1766977148872,0.0112169,89232.0,89215.0,0.0674989]
[1766977149069,0.0112171,89230.0,89215.0,0.08628]
[1766977149278,0.0674971,89230.0,89215.0,0.08628]
[1766977149582,0.0112176,89226.0,89211.0,0.05628]
[1766977149788,0.0112176,89226.0,89211.0,0.08628]
[1766977150275,0.0112176,89226.0,89211.0,0.03]
[1766977150482,0.0112176,89226.0,89209.0,0.0112196]
[1766977150483,0.1065776,89226.0,89209.0,0.0112196]
[1766977150669,0.1065776,89226.0,89209.0,0.0412196]
[1766977150872,0.1065776,89226.0,89210.0,0.2241354]
[1766977151072,0.1065776,89226.0,89210.0,0.2541354]
[1766977152874,0.09536,89226.0,89210.0,0.2541354]
[1766977153773,0.00016809,89227.0,89210.0,0.2541354]
[1766977153774,0.00016809,89227.0,89216.0,0.2241354]
[1766977153976,0.10099558,89256.0,89219.0,0.0112184]
[1766977153977,0.0559469,89228.0,89219.0,0.0112184]
[1766977154276,0.05628,89228.0,89219.0,0.0112184]
[1766977156382,0.05628,89228.0,89216.0,0.0112188]
[1766977156578,0.05628,89228.0,89213.0,0.00016809]
[1766977156771,0.05628,89228.0,89213.0,0.03016809]
[1766977157677,0.02342519,89227.0,89214.0,0.011219]
[1766977157883,0.02342519,89226.0,89214.0,0.011219]
[1766977158071,0.02342519,89225.0,89214.0,0.011219]
[1766977158271,0.05628,89228.0,89214.0,0.011219]
[1766977158469,0.02342538,89227.0,89214.0,0.011219]
[1766977158675,0.02342538,89226.0,89214.0,0.011219]
[1766977158870,0.02342538,89225.0,89216.0,0.0112187]
[1766977159071,0.02342538,89224.0,89216.0,0.0112187]
[1766977159272,0.05628,89228.0,89216.0,0.0112187]
[1766977159476,0.02342656,89227.0,89216.0,0.0112187]
[1766977159671,0.02342656,89226.0,89216.0,0.0112187]
[1766977159887,0.02342656,89225.0,89216.0,0.0112187]
[1766977160084,0.02342656,89224.0,89216.0,0.0112187]
[1766977160286,0.05628,89228.0,89216.0,0.0112187]
[1766977160477,0.02341475,89227.0,89216.0,0.0112187]
[1766977160677,0.02341475,89226.0,89216.0,0.0112187]
[1766977160877,0.02341475,89225.0,89216.0,0.0112187]
[1766977161085,0.05628,89228.0,89216.0,0.0112187]
[1766977161086,0.02341475,89224.0,89216.0,0.0112187]
[1766977161287,0.05628,89228.0,89216.0,0.0112187]
[1766977161489,0.02341594,89227.0,89216.0,0.0112187]
[1766977161690,0.02341594,89226.0,89216.0,0.0112187]
[1766977161880,0.02341594,89225.0,89216.0,0.0112187]
[1766977162079,0.02341594,89224.0,89216.0,0.0112187]
[1766977162288,0.05628,89228.0,89216.0,0.0112187]
[1766977162490,0.02341747,89227.0,89213.0,0.00016809]
[1766977162681,0.02341747,89226.0,89213.0,0.03016809]
[1766977162880,0.02341747,89225.0,89213.0,0.03016809]
[1766977163081,0.02341747,89224.0,89213.0,0.03016809]
[1766977163291,0.05628,89227.0,89213.0,0.03016809]
[1766977163491,0.0234104,89226.0,89213.0,0.03016809]
[1766977163681,0.0234104,89225.0,89213.0,0.03016809]
[1766977163878,0.0234104,89224.0,89213.0,0.03016809]
[1766977164191,0.05628,89227.0,89214.0,0.011219]
[1766977164491,0.02339557,89226.0,89214.0,0.041219]
[1766977164796,0.02339557,89225.0,89214.0,0.041219]
[1766977164990,0.02339557,89224.0,89215.0,0.2241354]
[1766977165187,0.05628,89227.0,89213.0,0.00016809]
[1766977165383,0.02339243,89226.0,89213.0,0.03016809]
[1766977165586,0.05628,89227.0,89213.0,0.03016809]
[1766977165587,0.02339243,89225.0,89213.0,0.03016809]
[1766977165786,0.02339243,89224.0,89213.0,0.04138719]
[1766977166094,0.05628,89227.0,89213.0,0.04138719]
[1766977166390,0.02339134,89226.0,89215.0,0.0112188]
[1766977166590,0.02339134,89225.0,89215.0,0.0112188]
[1766977166790,0.02339134,89224.0,89215.0,0.0112188]
[1766977166990,0.05628,89227.0,89215.0,0.0112188]
[1766977167192,0.02339454,89226.0,89213.0,0.00016809]
[1766977167394,0.02339454,89225.0,89214.0,0.011219]
[1766977167688,0.00016809,89232.0,89214.0,0.03]
[1766977167886,0.02340051,89231.0,89214.0,0.03]
[1766977168088,0.02340051,89230.0,89214.0,0.03]
[1766977168285,0.02340213,89229.0,89214.0,0.03]
[1766977168486,0.00016809,89232.0,89214.0,0.03]
[1766977168691,0.02340638,89231.0,89220.0,0.0112182]
[1766977168988,0.0112151,89246.0,89220.0,0.4482708]
[1766977169183,0.05628,89245.0,89232.0,0.0112167]
[1766977169392,0.05628,89245.0,89230.0,0.2241354]
[1766977173589,0.05628,89245.0,89225.0,0.0674975]
[1766977173995,0.05628,89245.0,89225.0,0.0974975]
[1766977174299,0.0112157,89241.0,89225.0,0.05628]
[1766977177198,0.011216,89239.0,89225.0,0.05628]
[1766977177490,0.0112166,89233.0,89210.0,0.26447095]
[1766977177796,0.15164,89232.0,89213.0,0.03016809]
[1766977178498,0.0112169,89231.0,89215.0,0.0112189]
[1766977178690,0.0112169,89231.0,89215.0,0.0412189]
[1766977178996,0.15164,89232.0,89215.0,0.0412189]
[1766977180189,0.0112172,89229.0,89215.0,0.03]
[1766977180391,0.0112172,89229.0,89213.0,0.00016809]
[1766977180598,0.0112175,89227.0,89213.0,0.00016809]
[1766977186907,0.0112175,89227.0,89210.0,0.0112195]
[1766977187097,0.0112175,89227.0,89210.0,0.0312195]
[1766977187906,0.01138559,89227.0,89210.0,0.03138759]
[1766977189202,0.01138559,89227.0,89208.0,0.05628]
[1766977189502,0.01138559,89227.0,89208.0,0.08628]
[1766977189903,0.01138559,89227.0,89209.0,0.0112196]
[1766977192704,0.01138559,89227.0,89203.0,0.05628]
[1766977192705,0.00016809,89227.0,89203.0,0.05628]
[1766977193001,0.00016809,89227.0,89205.0,0.12536]
[1766977193411,0.01138549,89227.0,89205.0,0.12536]
[1766977194011,0.0112177,89225.0,89205.0,0.12536]
[1766977194203,0.0112179,89223.0,89205.0,0.12536]
[1766977194396,0.0112179,89223.0,89206.0,0.01122]
[1766977197318,0.05628,89224.0,89210.0,0.0112195]
[1766977200419,0.09536,89247.0,89218.0,0.0112185]
[1766977200623,0.09536,89254.0,89230.0,0.011217]
[1766977200815,0.05628,89255.0,89246.0,0.0112149]
[1766977201113,0.05628,89255.0,89245.0,0.011215]
[1766977201306,0.00016809,89259.0,89252.0,0.0112142]
[1766977201509,0.05628,89268.0,89252.0,0.0112142]
[1766977201705,0.05628,89268.0,89248.0,0.0112146]
[1766977202110,0.0112124,89267.0,89248.0,0.0112146]
[1766977202315,0.05628,89268.0,89241.0,0.00016809]
[1766977202521,0.00016809,89263.0,89241.0,0.00016809]
[1766977202720,0.00016809,89263.0,89234.0,0.0112164]
[1766977202721,0.0112138,89256.0,89236.0,0.0112162]
[1766977202918,0.0674938,89256.0,89236.0,0.0112162]
[1766977203117,0.05628,89256.0,89235.0,0.01044]
[1766977203313,0.00016809,89263.0,89243.0,0.0112153]
[1766977203524,0.00016809,89263.0,89235.0,0.01044]
[1766977203525,0.00016809,89263.0,89248.0,0.0112147]
[1766977203723,0.05628,89262.0,89247.0,0.00016809]
[1766977204617,0.05628,89262.0,89248.0,0.0112147]
[1766977205426,0.05628,89262.0,89247.0,0.00016809]
[1766977206528,0.05628,89262.0,89248.0,0.0112147]
[1766977206729,0.00016809,89263.0,89248.0,0.0112147]
[1766977206919,0.00016809,89263.0,89247.0,0.00016809]
[1766977207329,0.00016809,89263.0,89254.0,0.011214]
[1766977207632,0.00224033,89273.0,89254.0,0.011214]
[1766977207824,0.00224033,89273.0,89254.0,0.106574]
[1766977208327,0.00224033,89273.0,89247.0,0.00016809]
[1766977208527,0.00224033,89273.0,89241.0,0.09536]
[1766977208724,0.011214,89254.0,89241.0,0.09536]
[1766977209619,0.00016809,89256.0,89241.0,0.09536]
[1766977209820,0.0112139,89255.0,89241.0,0.09536]
[1766977210021,0.0112143,89252.0,89241.0,0.09536]
[1766977210727,0.00016809,89256.0,89244.0,0.0112152]
[1766977211430,0.00016809,89256.0,89241.0,0.09536]
[1766977211821,0.01138189,89256.0,89241.0,0.09536]
[1766977212323,0.00016809,89256.0,89241.0,0.09536]
[1766977212527,0.0112159,89239.0,89220.0,0.09532]
[1766977212827,0.0112159,89239.0,89221.0,0.0674581]
[1766977213032,0.0112159,89239.0,89221.0,0.0974581]
[1766977213232,0.09532,89245.0,89221.0,0.05624]
[1766977214033,0.0112162,89237.0,89221.0,0.05624]
[1766977215332,0.0112165,89234.0,89221.0,0.05624]
[1766977215835,0.01138419,89238.0,89221.0,0.05624]
[1766977216936,0.00016809,89238.0,89221.0,0.05624]
[1766977218233,0.0112165,89234.0,89221.0,0.05624]
[1766977219124,0.01138419,89238.0,89221.0,0.05624]
[1766977219439,0.00016809,89238.0,89222.0,0.0112179]
[1766977219734,0.00016809,89238.0,89225.0,0.0112176]
[1766977220036,0.00016809,89238.0,89222.0,0.011218]
[1766977220236,0.00016809,89238.0,89221.0,0.05624]
[1766977220424,0.00016809,89238.0,89221.0,0.0674582]
[1766977220835,0.00016809,89238.0,89223.0,0.0112178]
[1766977221535,0.011215,89246.0,89226.0,0.0112174]
[1766977221735,0.05624,89244.0,89228.0,0.0112172]
[1766977222039,0.05624,89244.0,89226.0,0.0112174]
[1766977222535,0.05640809,89244.0,89226.0,0.01138549]
[1766977222736,0.05640809,89244.0,89228.0,0.0112172]
[1766977223533,0.1516,89250.0,89231.0,0.0112168]
[1766977223733,0.1628145,89250.0,89231.0,0.0112168]
[1766977224540,0.00016809,89249.0,89229.0,0.05624]
[1766977224730,0.0112148,89248.0,89229.0,0.05624]
[1766977225539,0.0112148,89248.0,89229.0,0.0674571]
[1766977227835,0.00016809,89249.0,89235.0,0.0112164]
[1766977228226,0.0674539,89255.0,89235.0,0.0112164]
[1766977228431,0.1628139,89255.0,89235.0,0.0112164]
[1766977228833,0.0112142,89253.0,89235.0,0.0112164]
[1766977229233,0.01138229,89253.0,89235.0,0.0112164]
[1766977229440,0.0112145,89251.0,89232.0,0.09536]
[1766977229942,0.00016809,89253.0,89232.0,0.09536]
[1766977230642,0.0112159,89240.0,89232.0,0.09536]
[1766977233341,0.011215,89246.0,89232.0,0.09536]
[1766977233540,0.0112147,89249.0,89232.0,0.09536]
[1766977233740,0.00016809,89253.0,89232.0,0.09536]
[1766977234840,0.0112149,89247.0,89232.0,0.09536]
[1766977236446,0.0112131,89262.0,89232.0,0.1065767]
[1766977236746,0.09536,89267.0,89232.0,0.12536]
[1766977236936,0.09536,89267.0,89244.0,0.0112152]
[1766977237133,0.0112135,89259.0,89245.0,0.1516]
[1766977237938,0.00016809,89261.0,89243.0,0.00016809]
[1766977238448,0.0112153,89244.0,89232.0,0.09536]
[1766977238743,0.0112133,89260.0,89232.0,0.1516]
[1766977238744,0.011216,89239.0,89232.0,0.1516]
[1766977239345,0.0112156,89242.0,89232.0,0.1516]
[1766977239552,0.00016809,89244.0,89232.0,0.1516]
[1766977240641,0.0112154,89243.0,89232.0,0.1516]
[1766977241451,0.0112128,89264.0,89232.0,0.1516]
[1766977241754,0.11292,89263.0,89232.0,0.1516]
[1766977242050,0.0112151,89245.0,89232.0,0.1516]
[1766977242449,0.0112131,89261.0,89232.0,0.1516]
[1766977242749,0.09532,89263.0,89238.0,0.011216]
[1766977242949,0.09532,89264.0,89240.0,0.0112157]
[1766977243149,0.0112138,89256.0,89240.0,0.0112157]
[1766977243351,0.0112134,89259.0,89243.0,0.0112153]
[1766977243569,0.0112131,89262.0,89243.0,0.0112153]
[1766977243743,0.011213,89263.0,89246.0,0.0112149]
[1766977243938,0.09532,89266.0,89247.0,0.05624]
[1766977244143,0.0112131,89262.0,89247.0,0.05624]
[1766977244749,0.00011118,89263.0,89247.0,0.0674548]
[1766977244950,0.09532,89266.0,89247.0,0.0674548]
[1766977245352,0.09532,89275.0,89252.0,0.0112142]
[1766977245951,0.09532,89275.0,89247.0,0.05624]
[1766977245952,0.0112124,89267.0,89249.0,0.0112146]
[1766977246251,0.0112127,89265.0,89247.0,0.05624]
[1766977247952,0.011213,89263.0,89247.0,0.05624]
[1766977248945,0.0112135,89259.0,89247.0,0.05624]
[1766977249649,0.09532,89275.0,89247.0,0.05624]
[1766977250651,0.0112131,89262.0,89247.0,0.05624]
[1766977251351,0.0112127,89265.0,89247.0,0.05624]
[1766977251655,0.09532,89275.0,89248.0,0.0112147]
[1766977252253,0.0112127,89265.0,89248.0,0.0112147]
[1766977253346,0.09532,89275.0,89247.0,0.05624]
[1766977254458,0.0112129,89263.0,89247.0,0.05624]
[1766977254953,0.0112132,89261.0,89247.0,0.05624]
[1766977255848,0.0112128,89264.0,89247.0,0.05624]
[1766977257249,0.0112128,89264.0,89248.0,0.0112147]
[1766977257556,0.09532,89275.0,89248.0,0.0112147]
[1766977257755,0.09532,89275.0,89247.0,0.05624]
[1766977258156,0.0112132,89261.0,89247.0,0.05624]
[1766977259557,0.0112128,89264.0,89247.0,0.05624]
[1766977260257,0.09532,89276.0,89249.0,0.0112146]
[1766977260456,0.09532,89276.0,89247.0,0.05624]
[1766977260457,0.09532,89276.0,89251.0,0.0112143]
[1766977260755,0.0112123,89268.0,89252.0,0.09532]
[1766977261353,0.0112126,89266.0,89252.0,0.09532]
[1766977261558,0.2239989,89262.0,89243.0,0.05624]
[1766977261757,0.0112136,89258.0,89236.0,0.05624]
[1766977261953,0.09532,89266.0,89241.0,0.0112156]
[1766977262354,0.09532,89265.0,89241.0,0.0112156]
[1766977262554,0.05624,89266.0,89241.0,0.0112156]
[1766977262760,0.00016809,89262.0,89245.0,0.00016809]
[1766977262962,0.01138109,89262.0,89245.0,0.00016809]
[1766977263156,0.0112134,89259.0,89245.0,0.00016809]
[1766977263458,0.01138109,89262.0,89249.0,0.2239989]
[1766977264059,0.00016809,89262.0,89250.0,0.0112145]
[1766977264459,0.00016809,89262.0,89249.0,0.2239989]
[1766977264955,0.01138109,89262.0,89249.0,0.2239989]
[1766977265154,0.01138109,89262.0,89246.0,0.011215]
[1766977265554,0.01138109,89262.0,89245.0,0.09548809]
[1766977266454,0.00016809,89262.0,89245.0,0.09548809]
[1766977266968,0.0112136,89258.0,89245.0,0.09548809]
[1766977268662,0.0112131,89261.0,89245.0,0.09548809]
[1766977271464,0.00016809,89262.0,89246.0,0.0112149]
[1766977272355,0.00016809,89262.0,89245.0,0.09548809]
[1766977272755,0.00016809,89262.0,89245.0,0.10670309]
[1766977273573,0.00016809,89262.0,89247.0,0.0112148]
[1766977274365,0.00016809,89262.0,89245.0,0.09548809]
[1766977274757,0.00016809,89262.0,89245.0,0.10670309]
[1766977274955,0.00016809,89262.0,89245.0,0.09548809]
[1766977275164,0.00016809,89262.0,89246.0,0.011215]
[1766977275552,0.0112131,89261.0,89245.0,0.09548809]
[1766977275752,0.0112135,89258.0,89245.0,0.09548809]
[1766977277664,0.0112132,89261.0,89245.0,0.09548809]
[1766977278266,0.0112134,89259.0,89245.0,0.09548809]
[1766977279151,0.2239989,89260.0,89245.0,0.09548809]
[1766977280169,0.0112137,89257.0,89245.0,0.09548809]
[1766977289473,0.0112143,89252.0,89245.0,0.05640809]
[1766977289774,0.2239989,89255.0,89241.0,0.05624]
[1766977289975,0.0112145,89250.0,89241.0,0.05624]
[1766977290571,0.05624,89256.0,89241.0,0.05624]
[1766977290776,0.04124,89258.0,89241.0,0.0674556]
[1766977290970,0.05624,89259.0,89241.0,0.0674556]
[1766977291169,0.00016809,89262.0,89241.0,0.0674556]
[1766977291170,0.00016809,89262.0,89241.0,0.05624]
[1766977291371,0.05624,89259.0,89241.0,0.05624]
[1766977291969,0.05624,89259.0,89247.0,0.0112148]
[1766977294373,0.0112121,89269.0,89248.0,0.05624]
[1766977294583,0.05624,89268.0,89251.0,0.0112143]
[1766977295476,0.06762039,89268.0,89248.0,0.0674547]
[1766977295672,0.06762039,89268.0,89250.0,0.0112144]
[1766977298198,0.06762039,89268.0,89252.0,0.0112142]
[1766977298390,0.05640809,89268.0,89252.0,0.0112142]
[1766977298699,0.00016809,89268.0,89254.0,0.0112139]
[1766977298898,0.0112119,89271.0,89254.0,0.0112139]
[1766977299196,0.0112115,89275.0,89260.0,0.2239989]
[1766977299890,0.05624,89277.0,89260.0,0.2239989]
[1766977300495,0.0112106,89281.0,89261.0,0.0112131]
[1766977300699,0.0112109,89279.0,89261.0,0.0112131]
[1766977301098,0.0112112,89277.0,89260.0,0.2239989]
[1766977302803,0.011211,89279.0,89261.0,0.011213]
[1766977304806,0.0112109,89279.0,89260.0,0.2239989]
[1766977305006,0.0112112,89277.0,89260.0,0.2239989]
[1766977306210,0.0112124,89267.0,89260.0,0.2239989]
[1766977306500,0.05624,89281.0,89259.0,0.00016809]
[1766977306805,0.235211,89270.0,89259.0,0.00016809]
[1766977307408,0.0112115,89274.0,89259.0,0.00016809]
[1766977307597,0.0112119,89271.0,89259.0,0.00016809]
[1766977308301,0.0112122,89269.0,89259.0,0.00016809]
[1766977311106,0.0674518,89272.0,89259.0,0.00016809]
[1766977314514,0.0112121,89270.0,89259.0,0.00016809]
[1766977319318,0.0112121,89270.0,89255.0,0.05624]
[1766977320414,0.0112129,89263.0,89243.0,0.00224108]
[1766977320615,0.2239989,89261.0,89243.0,0.00224108]
[1766977320818,0.0112135,89258.0,89243.0,0.00224108]
[1766977321118,0.2239989,89260.0,89243.0,0.00224108]
[1766977321314,0.2239989,89270.0,89243.0,0.00224108]
[1766977321626,0.0112124,89267.0,89248.0,0.00016809]
[1766977321925,0.0112127,89265.0,89248.0,0.00016809]
[1766977322510,0.15156,89264.0,89248.0,0.00016809]
[1766977323006,0.15156,89264.0,89243.0,0.00224108]
[1766977323206,0.15156,89264.0,89243.0,1.08e-06]
[1766977323409,0.0112137,89257.0,89236.0,0.0112162]
[1766977323610,0.05624,89256.0,89236.0,0.0112162]
[1766977324222,0.05624,89256.0,89238.0,0.011216]
[1766977324613,0.05624,89256.0,89237.0,0.00016809]
[1766977324821,0.05624,89256.0,89242.0,0.0112154]
[1766977325217,0.05624,89256.0,89238.0,0.0112159]
[1766977325417,0.05624,89256.0,89237.0,0.00016809]
[1766977326212,0.09532,89264.0,89237.0,0.00016809]
[1766977326417,0.05624,89265.0,89237.0,0.00016809]
[1766977326618,0.05624,89264.0,89237.0,0.00016809]
[1766977326922,0.05624,89264.0,89248.0,0.0112147]
[1766977327516,0.05624,89264.0,89244.0,0.0674552]
[1766977328017,0.05624,89264.0,89247.0,0.0112148]
[1766977330322,0.05624,89263.0,89250.0,0.0112145]
[1766977330523,0.05624,89265.0,89250.0,0.0112145]
[1766977330927,0.00016809,89271.0,89250.0,0.0112145]
[1766977331320,0.15156,89270.0,89250.0,0.0112145]
[1766977332727,0.05624,89269.0,89250.0,0.0112145]
[1766977332930,0.0112123,89268.0,89246.0,0.106535]
[1766977333526,0.05624,89269.0,89248.0,0.0112146]
[1766977334327,0.05624,89269.0,89248.0,0.0112148]
[1766977335836,0.0112123,89268.0,89248.0,0.0112148]
[1766977337537,0.05624,89269.0,89248.0,0.0112148]
[1766977338831,0.05624,89269.0,89247.0,0.05624]
[1766977339037,0.0112124,89267.0,89248.0,0.0112147]
[1766977339341,0.05624,89269.0,89248.0,0.0112147]
[1766977339639,0.0112123,89268.0,89248.0,0.0112147]
[1766977340028,0.00016809,89271.0,89250.0,0.0112144]
[1766977340225,0.0674521,89270.0,89250.0,0.0112144]
[1766977340429,0.09532,89269.0,89250.0,0.0112144]
[1766977342533,0.0112124,89268.0,89247.0,0.05624]
[1766977342934,0.09532,89269.0,89240.0,0.0112157]
[1766977343140,0.011213,89263.0,89242.0,0.0112154]
[1766977343342,0.05624,89262.0,89242.0,0.0112154]
[1766977343541,0.0112131,89261.0,89242.0,0.0112154]
[1766977351550,0.05624,89262.0,89241.0,0.15156]
[1766977353048,0.0112135,89259.0,89241.0,0.15156]
[1766977353449,0.0674531,89262.0,89241.0,0.15156]
[1766977353652,0.0674531,89262.0,89243.0,0.0112154]
[1766977355753,0.05624,89262.0,89245.0,0.0112151]
[1766977358158,0.05624,89262.0,89241.0,0.15156]
[1766977358459,0.05624,89262.0,89243.0,0.0112154]
[1766977358757,0.05624,89262.0,89245.0,0.0112151]
[1766977360256,0.05624,89262.0,89247.0,0.0112148]
[1766977361256,0.05624,89262.0,89244.0,0.0112152]
[1766977362054,0.05624,89262.0,89241.0,0.13656]
[1766977362258,0.05624,89262.0,89241.0,0.08032]
[1766977362466,0.0112135,89259.0,89230.0,0.03025351]
[1766977362662,0.09532,89258.0,89228.0,0.03025351]
[1766977363253,0.09532,89258.0,89237.0,0.0112161]
[1766977363461,0.00016809,89256.0,89239.0,0.00016809]
[1766977363853,0.00016809,89256.0,89227.0,0.15156]
[1766977364854,0.00016809,89256.0,89227.0,0.10172809]
[1766977365055,0.00016809,89256.0,89239.0,0.0112158]
[1766977365256,0.00016809,89256.0,89227.0,0.10172809]
[1766977365763,0.00016809,89256.0,89222.0,0.04147151]
[1766977366064,0.15156,89255.0,89230.0,0.00011208]
[1766977367964,0.15156,89255.0,89232.0,0.0112167]
[1766977369566,0.15156,89255.0,89234.0,0.0112164]
[1766977369765,0.15156,89255.0,89230.0,0.00011208]
[1766977369766,0.15156,89255.0,89236.0,0.0112162]
[1766977370566,0.15156,89254.0,89236.0,0.0112162]
[1766977370755,0.15156,89253.0,89236.0,0.0112162]
[1766977371168,0.15156,89253.0,89233.0,0.0112166]
[1766977371466,0.15156,89253.0,89237.0,0.0112161]
[1766977372973,0.15156,89253.0,89234.0,0.0112165]
[1766977373470,0.15156,89253.0,89231.0,0.0112169]
[1766977373767,0.1627741,89253.0,89230.0,0.01132898]
[1766977375963,0.15156,89253.0,89234.0,0.0112164]
[1766977376672,0.15156,89253.0,89240.0,0.0112157]
[1766977377674,0.15156,89253.0,89239.0,0.0112158]
[1766977380176,0.15156,89253.0,89241.0,0.0112156]
[1766977380778,0.15156,89253.0,89238.0,0.011216]
[1766977381368,0.15156,89253.0,89240.0,0.0112157]
[1766977382170,0.15156,89253.0,89230.0,0.00011208]
[1766977382977,0.15156,89253.0,89238.0,0.0112159]
[1766977383379,0.15156,89253.0,89235.0,0.0112163]
[1766977383981,0.15156,89253.0,89237.0,0.0112161]
[1766977384481,0.22418511,89247.0,89237.0,0.0112161]
[1766977384668,0.05624,89246.0,89237.0,0.0112161]
[1766977384873,0.05624,89246.0,89239.0,0.0112158]
[1766977385974,0.05624,89246.0,89236.0,0.0112163]
[1766977387379,0.05624,89246.0,89233.0,0.0112166]
[1766977388085,0.22418511,89243.0,89206.0,0.06045246]
[1766977388375,0.22418511,89216.0,89183.0,0.0112228]
[1766977388582,1e-08,89210.0,89202.0,0.0112205]
[1766977388875,0.09532,89217.0,89202.0,0.0112205]
[1766977388876,0.05624,89212.0,89202.0,0.0112205]
[1766977389075,0.00016809,89216.0,89192.0,0.09532]
[1766977389282,0.00016809,89216.0,89208.0,0.0112198]
[1766977389480,0.22418511,89230.0,89200.0,0.22418511]
[1766977389678,0.0912205,89229.0,89200.0,0.22418511]
[1766977389977,0.0112176,89226.0,89202.0,0.0112205]
[1766977390178,0.0237632,89225.0,89207.0,0.0112199]
[1766977390384,0.02393129,89225.0,89207.0,0.01138799]
[1766977390585,0.0237632,89224.0,89207.0,0.00016809]
[1766977390880,0.0237632,89223.0,89085.0,0.1996]